bitfinex/quotes_BTCUSD_20241206
["timestamp","ask_amount","ask_price","bid_price","bid_amount"]
[1733487367948,0.002,98411.0,98405.0,0.203241]
[1733487368192,0.002,98411.0,98409.0,0.203232]
[1733487368403,0.0008657,98420.0,98415.0,0.20322]
[1733487369264,0.0008657,98420.0,98419.0,0.203212]
[1733487369727,0.0008657,98420.0,98419.0,0.0063844]
[1733487369945,0.0018657,98420.0,98419.0,0.0063844]
[1733487370152,0.0028657,98420.0,98419.0,0.203212]
[1733487370384,0.0018657,98420.0,98419.0,0.2095964]
[1733487371008,0.0008657,98420.0,98419.0,0.2095964]
[1733487371399,0.0018657,98420.0,98419.0,0.2095964]
[1733487371819,0.203176,98437.0,98419.0,0.2095964]
[1733487372015,0.10503154,98436.0,98419.0,0.2095964]
[1733487372238,0.203179,98435.0,98419.0,0.2095964]
[1733487372446,0.10503154,98434.0,98419.0,0.0063844]
[1733487372662,0.203183,98433.0,98419.0,0.0063844]
[1733487372889,0.001,98420.0,98417.0,0.203216]
[1733487373245,0.203183,98433.0,98417.0,0.203216]
[1733487373455,0.10703154,98434.0,98417.0,0.203216]
[1733487373774,0.10703154,98434.0,98417.0,0.29330329]
[1733487374113,0.203183,98433.0,98417.0,0.29330329]
[1733487374637,0.203183,98433.0,98419.0,0.09008729]
[1733487375525,0.203183,98433.0,98418.0,0.09008729]
[1733487375737,0.203183,98433.0,98420.0,0.09008729]
[1733487376099,0.203183,98433.0,98419.0,0.09008729]
[1733487376504,0.208183,98433.0,98418.0,0.09008729]
[1733487376894,0.205183,98433.0,98418.0,0.09008729]
[1733487377106,0.203194,98429.0,98418.0,0.09008729]
[1733487377310,0.2032,98426.0,98416.0,0.21438729]
[1733487377515,0.2032,98426.0,98416.0,0.0761]
[1733487377922,0.10503154,98434.0,98416.0,0.0761]
[1733487378133,0.002,98433.0,98416.0,0.0761]
[1733487378415,0.002,98433.0,98422.0,0.203205]
[1733487378840,0.002,98433.0,98423.0,0.00637126]
[1733487379234,0.005,98433.0,98423.0,0.00637126]
[1733487379442,0.10503154,98434.0,98423.0,0.00637126]
[1733487379443,0.001,98426.0,98423.0,0.00637126]
[1733487379686,0.001,98426.0,98420.0,0.09024462]
[1733487379903,0.004,98433.0,98424.0,0.00637126]
[1733487380116,0.004,98433.0,98420.0,0.29345362]
[1733487380307,0.01,98433.0,98420.0,0.29345362]
[1733487380553,0.002,98433.0,98420.0,0.09024462]
[1733487380764,0.10503154,98434.0,98423.0,0.203202]
[1733487380968,0.001,98426.0,98424.0,0.203202]
[1733487381173,0.001,98426.0,98425.0,0.0822]
[1733487381348,0.001,98426.0,98425.0,0.08857694]
[1733487382016,0.002,98433.0,98425.0,0.08857694]
[1733487382243,0.002,98433.0,98426.0,0.203198]
[1733487382466,0.006,98433.0,98425.0,0.08857694]
[1733487382675,0.203188,98431.0,98427.0,0.00637659]
[1733487382878,0.203188,98431.0,98417.0,0.0822]
[1733487383080,0.203188,98431.0,98428.0,0.00637659]
[1733487383282,0.203188,98431.0,98425.0,0.002]
[1733487383503,0.203188,98431.0,98417.0,0.17251521]
[1733487383706,0.203202,98425.0,98417.0,0.17251521]
[1733487383880,0.203195,98428.0,98418.0,0.00637613]
[1733487385323,0.203195,98428.0,98417.0,0.0832]
[1733487385816,0.203195,98428.0,98418.0,0.00737613]
[1733487386220,0.203195,98428.0,98418.0,0.00637613]
[1733487387413,0.204195,98428.0,98418.0,0.00637613]
[1733487387609,0.205195,98428.0,98418.0,0.00637613]
[1733487387835,0.204195,98428.0,98418.0,0.00637613]
[1733487388259,0.205195,98428.0,98418.0,0.00637613]
[1733487388619,0.002,98428.0,98418.0,0.00637613]
[1733487389029,0.001,98428.0,98418.0,0.00637613]
[1733487389436,0.20334963,98437.0,98420.0,0.20321]
[1733487389646,0.001,98428.0,98420.0,0.20321]
[1733487389812,0.002,98428.0,98421.0,0.00637926]
[1733487390006,0.001,98428.0,98421.0,0.00637926]
[1733487390272,0.203183,98434.0,98417.0,0.285415]
[1733487390494,0.002,98428.0,98419.0,0.203212]
[1733487390700,0.001,98428.0,98418.0,0.09031521]
[1733487390941,0.30821454,98434.0,98420.0,0.00637926]
[1733487391142,0.30821454,98434.0,98418.0,0.09031521]
[1733487391356,0.001,98428.0,98421.0,0.00637806]
[1733487391568,0.001,98428.0,98418.0,0.09031521]
[1733487391795,0.001,98428.0,98422.0,0.00637806]
[1733487391994,0.001,98428.0,98418.0,0.09031521]
[1733487392217,0.001,98428.0,98423.0,0.00637806]
[1733487392430,0.001,98428.0,98418.0,0.09044]
[1733487392642,0.30821454,98434.0,98424.0,0.00637806]
[1733487392863,0.001,98428.0,98418.0,0.09044]
[1733487393286,0.001,98428.0,98419.0,0.00637806]
[1733487393714,0.001,98428.0,98423.0,0.203202]
[1733487394171,0.10803154,98434.0,98420.0,0.20321]
[1733487394423,0.10803154,98434.0,98424.0,0.00637806]
[1733487394697,0.001,98428.0,98418.0,0.09044]
[1733487394921,0.001,98428.0,98419.0,0.00637806]
[1733487395798,0.002,98428.0,98419.0,0.00637806]
[1733487396006,0.002,98428.0,98410.0,0.0784314]
[1733487396007,0.001,98428.0,98410.0,0.0784314]
[1733487396212,0.203207,98422.0,98410.0,0.0784314]
[1733487396438,0.02061397,98424.0,98411.0,0.00637447]
[1733487396661,0.00625335,98426.0,98411.0,0.20960247]
[1733487396859,0.203196,98427.0,98411.0,0.20960247]
[1733487396860,0.20945335,98425.0,98411.0,0.20960247]
[1733487397077,0.2032,98425.0,98411.0,0.20960247]
[1733487397217,0.00625537,98424.0,98411.0,0.20960247]
[1733487397624,0.203211,98420.0,98411.0,0.00637447]
[1733487397828,0.10503154,98419.0,98411.0,0.00637447]
[1733487398031,0.15549365,98420.0,98411.0,0.00637447]
[1733487398367,0.203223,98414.0,98410.0,0.0017314]
[1733487398710,0.203223,98414.0,98411.0,0.00637767]
[1733487398913,0.203223,98414.0,98410.0,0.0017314]
[1733487399127,0.203223,98414.0,98411.0,0.001]
[1733487399531,0.203223,98414.0,98410.0,0.0017314]
[1733487399751,0.203223,98414.0,98410.0,0.0047314]
[1733487399981,0.203223,98414.0,98410.0,0.0017314]
[1733487400382,0.203223,98414.0,98411.0,0.003]
[1733487400607,0.203223,98414.0,98411.0,0.004]
[1733487400822,0.203223,98414.0,98411.0,0.001]
[1733487400993,0.20321,98420.0,98410.0,0.0017314]
[1733487401447,0.20321,98420.0,98411.0,0.00637977]
[1733487401801,0.203208,98422.0,98411.0,0.00637977]
[1733487402005,0.203215,98418.0,98411.0,0.00637977]
[1733487402248,0.203215,98418.0,98410.0,0.0057314]
[1733487402444,0.203215,98418.0,98410.0,0.0027314]
[1733487403382,0.203215,98418.0,98411.0,0.001]
[1733487403735,0.203215,98418.0,98410.0,0.0017314]
[1733487404165,0.203215,98418.0,98411.0,0.00638476]
[1733487404571,0.203215,98418.0,98410.0,0.0027314]
[1733487404929,0.10503154,98422.0,98411.0,0.00638476]
[1733487405134,0.00625228,98423.0,98413.0,0.0795]
[1733487405343,0.00625228,98436.0,98414.0,0.251123]
[1733487405528,0.10503154,98435.0,98414.0,0.25750752]
[1733487405730,0.00625228,98434.0,98414.0,0.25750752]
[1733487406104,0.10503154,98435.0,98414.0,0.34802064]
[1733487406105,0.11128382,98433.0,98414.0,0.34802064]
[1733487406287,0.002,98422.0,98415.0,0.203221]
[1733487406491,0.00625228,98431.0,98415.0,0.203221]
[1733487406692,0.00625228,98430.0,98415.0,0.203221]
[1733487406850,0.00625228,98429.0,98416.0,0.00638452]
[1733487407056,0.20319,98430.0,98417.0,0.09051312]
[1733487407287,0.20319,98430.0,98416.0,0.00638452]
[1733487407288,0.20319,98430.0,98418.0,0.09051312]
[1733487407611,0.20319,98430.0,98419.0,0.00638452]
[1733487408130,0.203185,98432.0,98419.0,0.00638452]
[1733487408343,0.002,98430.0,98418.0,0.09051312]
[1733487408520,0.002,98430.0,98420.0,0.00638452]
[1733487408732,0.002,98430.0,98419.0,0.09051312]
[1733487408932,0.002,98430.0,98421.0,0.00638452]
[1733487409079,0.002,98430.0,98419.0,0.09051312]
[1733487409281,0.002,98430.0,98421.0,0.09051312]
[1733487409491,0.00625265,98431.0,98421.0,0.09051312]
[1733487409711,0.005,98430.0,98422.0,0.00638452]
[1733487410059,0.007,98430.0,98420.0,0.09051312]
[1733487410235,0.012,98430.0,98423.0,0.00638452]
[1733487410439,0.00625265,98431.0,98423.0,0.09051312]
[1733487410638,0.00625265,98431.0,98424.0,0.00638452]
[1733487410799,0.005,98430.0,98424.0,0.00638452]
[1733487411003,0.005,98430.0,98422.0,0.09051312]
[1733487411217,0.005,98430.0,98425.0,0.00638452]
[1733487411414,0.005,98430.0,98424.0,0.09051312]
[1733487411616,0.005,98430.0,98426.0,0.00638452]
[1733487411819,0.005,98430.0,98421.0,0.13576968]
[1733487411820,0.005,98430.0,98423.0,0.09051312]
[1733487412021,0.005,98430.0,98427.0,0.00638452]
[1733487412225,0.00825371,98431.0,98425.0,0.09051312]
[1733487412449,0.00825371,98431.0,98428.0,0.00638452]
[1733487412450,0.20819,98430.0,98428.0,0.00638452]
[1733487412660,0.00625371,98429.0,98424.0,0.09051312]
[1733487413062,0.005,98430.0,98425.0,0.09051312]
[1733487413319,0.005,98430.0,98426.0,0.09051312]
[1733487413520,0.00825371,98431.0,98426.0,0.09051312]
[1733487413750,0.0058652,98430.0,98426.0,0.09051312]
[1733487414183,0.0008652,98430.0,98426.0,0.09051312]
[1733487414611,0.0008652,98430.0,98427.0,0.00638452]
[1733487415459,0.0058652,98430.0,98427.0,0.00638452]
[1733487415871,0.0058652,98430.0,98427.0,0.09689764]
[1733487416107,0.0078652,98430.0,98427.0,0.00638452]
[1733487416323,0.0078652,98430.0,98427.0,0.09689764]
[1733487416550,0.203192,98429.0,98427.0,0.00638452]
[1733487417236,0.203192,98429.0,98424.0,0.09051312]
[1733487417669,0.203192,98429.0,98425.0,0.09689452]
[1733487418280,0.203192,98429.0,98426.0,0.09051312]
[1733487418964,0.205192,98429.0,98427.0,0.0063814]
[1733487419383,0.203192,98429.0,98427.0,0.0063814]
[1733487419607,0.205192,98429.0,98427.0,0.0063814]
[1733487419835,0.205192,98429.0,98425.0,0.09051312]
[1733487420080,0.3266541,98429.0,98428.0,0.0063814]
[1733487420298,0.203214,98418.0,98417.0,0.09051312]
[1733487420532,0.11128576,98418.0,98409.0,0.09058707]
[1733487420763,0.203225,98413.0,98405.0,0.09058707]
[1733487420990,0.203225,98413.0,98406.0,0.09058707]
[1733487420991,0.203229,98411.0,98406.0,0.09058707]
[1733487421169,0.20948322,98411.0,98406.0,0.09058707]
[1733487421831,0.20948322,98411.0,98405.0,0.09058707]
[1733487422277,0.20948174,98411.0,98405.0,0.09058707]
[1733487422460,0.203229,98411.0,98405.0,0.09058707]
[1733487423080,0.205229,98411.0,98405.0,0.09058707]
[1733487423286,0.206229,98411.0,98404.0,0.09058707]
[1733487423536,0.206229,98411.0,98405.0,0.09057756]
[1733487423764,0.204229,98411.0,98404.0,0.09057756]
[1733487424207,0.206229,98411.0,98404.0,0.09057756]
[1733487424620,0.206229,98411.0,98403.0,0.09057756]
[1733487424847,0.205229,98411.0,98403.0,0.09057756]
[1733487425256,0.206229,98411.0,98403.0,0.09057756]
[1733487425481,0.204229,98411.0,98403.0,0.09057756]
[1733487425693,0.205229,98411.0,98403.0,0.09057756]
[1733487426150,0.205229,98411.0,98401.0,0.09057756]
[1733487426151,0.21247883,98411.0,98401.0,0.09057756]
[1733487426377,0.206229,98411.0,98401.0,0.09057756]
[1733487426845,0.21147789,98411.0,98401.0,0.09057756]
[1733487427057,0.20947789,98411.0,98400.0,0.09230716]
[1733487427496,0.21147789,98411.0,98400.0,0.09230716]
[1733487427714,0.205229,98411.0,98400.0,0.09230716]
[1733487427904,0.211477,98411.0,98400.0,0.09230716]
[1733487428101,0.212477,98411.0,98400.0,0.09230716]
[1733487428338,0.206229,98411.0,98400.0,0.09230716]
[1733487428561,0.205229,98411.0,98400.0,0.09230716]
[1733487428782,0.203229,98411.0,98400.0,0.09230716]
[1733487429016,0.206229,98411.0,98400.0,0.09230716]
[1733487429456,0.204229,98411.0,98400.0,0.09230716]
[1733487429663,0.206229,98411.0,98400.0,0.0017296]
[1733487431201,0.205229,98411.0,98400.0,0.0017296]
[1733487431643,0.206229,98411.0,98400.0,0.0017296]
[1733487431818,0.204229,98411.0,98400.0,0.0017296]
[1733487432064,0.205229,98411.0,98400.0,0.0017296]
[1733487432301,0.206229,98411.0,98400.0,0.0017296]
[1733487432528,0.204229,98411.0,98400.0,0.0017296]
[1733487432738,0.206229,98411.0,98400.0,0.0017296]
[1733487432967,0.21247374,98411.0,98400.0,0.0017296]
[1733487433178,0.21047374,98411.0,98400.0,0.0017296]
[1733487433385,0.205229,98411.0,98400.0,0.0017296]
[1733487433580,0.203229,98411.0,98400.0,0.0017296]
[1733487434181,0.30826054,98411.0,98400.0,0.0017296]
[1733487434385,0.31450409,98411.0,98400.0,0.0017296]
[1733487434600,0.31550409,98411.0,98400.0,0.0017296]
[1733487435010,0.31750409,98411.0,98400.0,0.0017296]
[1733487435227,0.31650409,98411.0,98400.0,0.0017296]
[1733487435368,0.31750409,98411.0,98400.0,0.0017296]
[1733487436661,0.31126054,98411.0,98400.0,0.0017296]
[1733487436871,0.31750184,98411.0,98400.0,0.0017296]
[1733487437743,0.36590184,98411.0,98400.0,0.0017296]
[1733487441909,0.38180004,98411.0,98400.0,0.0017296]
[1733487442120,0.2283685,98411.0,98405.0,0.0815]
[1733487442347,0.2221272,98411.0,98405.0,0.0815]
[1733487445398,0.22835204,98411.0,98405.0,0.0815]
[1733487447010,0.22735204,98411.0,98405.0,0.0815]
[1733487447671,0.2211272,98411.0,98405.0,0.0815]
[1733487447927,0.22735575,98411.0,98405.0,0.0815]
[1733487448141,0.22635575,98411.0,98405.0,0.0815]
[1733487448608,0.02512675,98411.0,98405.0,0.0815]
[1733487448832,0.0188982,98411.0,98405.0,0.0815]
[1733487449311,0.0188982,98411.0,98410.0,0.00890953]
[1733487449529,0.02512939,98411.0,98410.0,0.0017314]
[1733487450190,0.02412939,98411.0,98410.0,0.0017314]
[1733487450608,0.02512939,98411.0,98410.0,0.0017314]
[1733487451180,0.0188982,98411.0,98410.0,0.0017314]
[1733487451342,0.02312939,98411.0,98410.0,0.0017314]
[1733487451539,0.02212939,98411.0,98410.0,0.0017314]
[1733487451744,0.02312939,98411.0,98410.0,0.0017314]
[1733487452035,0.0168982,98411.0,98410.0,0.0017314]
[1733487452451,0.0178982,98411.0,98410.0,0.0017314]
[1733487452660,0.02412939,98411.0,98410.0,0.0017314]
[1733487452828,0.0178982,98411.0,98410.0,0.0017314]
[1733487453074,0.0168982,98411.0,98410.0,0.0017314]
[1733487453418,0.02412939,98411.0,98410.0,0.0017314]
[1733487453670,0.0168982,98411.0,98410.0,0.0017314]
[1733487453881,0.0158982,98411.0,98410.0,0.0017314]
[1733487454108,0.0168982,98411.0,98410.0,0.0017314]
[1733487454379,0.02412939,98411.0,98410.0,0.00890346]
[1733487454592,0.0168982,98411.0,98410.0,0.00890346]
[1733487454802,0.0178982,98411.0,98410.0,0.00890346]
[1733487455014,0.0158982,98411.0,98410.0,0.00890346]
[1733487455216,0.0168982,98411.0,98410.0,0.00890346]
[1733487455487,0.0168982,98411.0,98410.0,0.0017314]
[1733487456130,0.0158982,98411.0,98410.0,0.0017314]
[1733487456344,0.0168982,98411.0,98410.0,0.0017314]
[1733487456776,0.0158982,98411.0,98410.0,0.0017314]
[1733487457198,0.0168982,98411.0,98410.0,0.0017314]
[1733487457368,0.0178982,98411.0,98410.0,0.0017314]
[1733487457606,0.0168982,98411.0,98410.0,0.0017314]
[1733487457812,0.0158982,98411.0,98410.0,0.0017314]
[1733487458027,0.0168982,98411.0,98410.0,0.0017314]
[1733487458230,0.0178982,98411.0,98410.0,0.0017314]
[1733487459285,0.0168982,98411.0,98410.0,0.0017314]
[1733487459504,0.0158982,98411.0,98410.0,0.0017314]
[1733487459739,0.0168982,98411.0,98410.0,0.0017314]
[1733487460294,0.0158982,98411.0,98410.0,0.0017314]
[1733487460705,0.0178982,98411.0,98410.0,0.0017314]
[1733487461563,0.0168982,98411.0,98410.0,0.0017314]
[1733487461809,0.0178982,98411.0,98410.0,0.0017314]
[1733487462230,0.0168982,98411.0,98410.0,0.0017314]
[1733487462643,0.0178982,98411.0,98410.0,0.0017314]
[1733487463067,0.14038987,98411.0,98410.0,0.0017314]
[1733487463643,0.13938987,98411.0,98410.0,0.0017314]
[1733487464098,0.14038987,98411.0,98410.0,0.0017314]
[1733487464240,0.13938987,98411.0,98410.0,0.0017314]
[1733487464447,0.14038987,98411.0,98410.0,0.0017314]
[1733487464906,0.29078987,98411.0,98410.0,0.0017314]
[1733487465103,0.29178987,98411.0,98410.0,0.0017314]
[1733487465444,0.29078987,98411.0,98410.0,0.0017314]
[1733487465848,0.29178987,98411.0,98410.0,0.0017314]
[1733487465968,0.29078987,98411.0,98410.0,0.0017314]
[1733487466169,0.29678987,98411.0,98410.0,0.0027314]
[1733487466586,0.29978987,98411.0,98410.0,0.0027314]
[1733487466780,0.28856093,98411.0,98410.0,0.0027314]
[1733487468874,0.82216093,98411.0,98410.0,0.0027314]
[1733487469490,0.77216093,98411.0,98410.0,0.0027314]
[1733487471892,0.76916093,98411.0,98410.0,0.0027314]
[1733487472137,0.76516093,98411.0,98410.0,0.0017314]
[1733487472303,0.82216093,98411.0,98410.0,0.0027314]
[1733487472833,0.91705585,98411.0,98410.0,0.0017314]
[1733487473068,0.92705585,98411.0,98410.0,0.0027314]
[1733487473486,0.93105585,98411.0,98410.0,0.0037314]
[1733487473833,0.82616093,98411.0,98410.0,0.0037314]
[1733487474243,0.87616093,98411.0,98410.0,4e-07]
[1733487474656,0.92516093,98411.0,98410.0,4e-07]
[1733487474864,0.600749,98401.0,98400.0,0.0017296]
[1733487475065,0.71201173,98401.0,98400.0,0.0017296]
[1733487475656,0.81690665,98401.0,98400.0,0.0017296]
[1733487475857,0.71201173,98401.0,98400.0,0.0017296]
[1733487476266,0.72101173,98401.0,98400.0,0.0027296]
[1733487476633,0.72401173,98401.0,98400.0,0.0027296]
[1733487477291,0.87401173,98401.0,98400.0,0.0027296]
[1733487477698,0.32651173,98401.0,98400.0,0.0027296]
[1733487478506,0.31451173,98401.0,98400.0,0.0017296]
[1733487478736,0.33504422,98401.0,98400.0,0.0017296]
[1733487478935,0.34604422,98401.0,98400.0,0.0027296]
[1733487479279,0.33804422,98401.0,98400.0,0.0017296]
[1733487479485,0.34304422,98401.0,98400.0,0.0027296]
[1733487479913,0.34602979,98401.0,98400.0,0.0027296]
[1733487480465,0.33981303,98401.0,98400.0,0.0027296]
[1733487480723,0.03153249,98401.0,98400.0,0.0846296]
[1733487480901,0.011,98401.0,98400.0,0.0846296]
[1733487481103,0.0158982,98411.0,98400.0,0.14032386]
[1733487481328,0.004,98401.0,98400.0,0.14132386]
[1733487481545,0.012,98401.0,98400.0,0.14132386]
[1733487481752,0.004,98401.0,98400.0,0.14032386]
[1733487481960,0.008,98401.0,98400.0,0.14132386]
[1733487482163,0.008,98401.0,98400.0,0.00992386]
[1733487482164,0.11303154,98401.0,98400.0,0.00992386]
[1733487482415,0.11303154,98401.0,98400.0,0.00892386]
[1733487482416,0.14287656,98401.0,98400.0,0.00892386]
[1733487482614,0.14287656,98401.0,98400.0,0.0017296]
[1733487482825,0.14287656,98401.0,98400.0,0.0037296]
[1733487483029,0.14287656,98401.0,98400.0,0.0017296]
[1733487483203,0.11124842,98401.0,98400.0,0.0027296]
[1733487484308,0.26124842,98401.0,98400.0,0.0017296]
[1733487484511,0.26124842,98401.0,98400.0,0.0047296]
[1733487484682,0.26224842,98401.0,98400.0,0.0017296]
[1733487485040,0.11924842,98401.0,98400.0,0.0017296]
[1733487485264,0.01421688,98401.0,98400.0,0.0017296]
[1733487485613,0.012,98401.0,98400.0,0.0017296]
[1733487485830,0.203234,98409.0,98400.0,0.0017296]
[1733487485971,0.203241,98406.0,98400.0,0.00891163]
[1733487486186,0.009,98401.0,98400.0,0.00891163]
[1733487486458,0.003,98401.0,98400.0,0.0017296]
[1733487487605,0.003,98401.0,98400.0,0.00891692]
[1733487487806,0.009,98401.0,98400.0,0.00991692]
[1733487488017,0.006,98401.0,98400.0,0.00891692]
[1733487488241,0.00621892,98414.0,98400.0,0.00891692]
[1733487488242,0.003,98409.0,98400.0,0.00891692]
[1733487488424,0.001,98401.0,98400.0,0.00891692]
[1733487489681,0.207234,98409.0,98400.0,0.00891692]
[1733487489889,0.203243,98405.0,98400.0,0.00891692]
[1733487490109,0.203243,98405.0,98400.0,0.0017296]
[1733487490315,0.203235,98408.0,98400.0,0.0017296]
[1733487491859,0.406488,98404.0,98400.0,0.0017296]
[1733487492060,0.203247,98402.0,98400.0,0.0017296]
[1733487492625,0.10503154,98401.0,98400.0,0.0017296]
[1733487492825,0.11125484,98401.0,98400.0,0.0017296]
[1733487493963,0.13195491,98401.0,98400.0,0.0017296]
[1733487495057,0.13195491,98401.0,98400.0,0.0027296]
[1733487495259,0.13695491,98401.0,98400.0,0.0027296]
[1733487495460,0.13695491,98401.0,98400.0,0.0017296]
[1733487495880,0.13995491,98401.0,98400.0,0.0017296]
[1733487496840,0.0142233,98401.0,98400.0,0.0847296]
[1733487497050,0.008,98401.0,98400.0,0.0847296]
[1733487497257,0.008,98401.0,98400.0,0.09190359]
[1733487497699,0.005,98401.0,98400.0,0.09190359]
[1733487497920,0.003,98401.0,98400.0,0.09190359]
[1733487498361,0.005,98401.0,98400.0,0.09190359]
[1733487498589,0.203241,98405.0,98400.0,0.09190359]
[1733487498813,0.008,98401.0,98400.0,0.0847296]
[1733487499021,0.003,98401.0,98400.0,0.0847296]
[1733487499229,0.003,98401.0,98400.0,0.09190359]
[1733487499458,0.005,98401.0,98400.0,0.09190359]
[1733487499708,0.203249,98402.0,98400.0,0.09190359]
[1733487500735,0.203249,98402.0,98400.0,0.00890359]
[1733487501182,0.203249,98402.0,98400.0,0.0017296]
[1733487501820,0.006,98401.0,98400.0,0.0017296]
[1733487501976,0.002,98401.0,98400.0,0.0017296]
[1733487502196,0.203249,98402.0,98400.0,0.0017296]
[1733487502380,0.207249,98402.0,98400.0,0.0017296]
[1733487502693,0.203249,98402.0,98400.0,0.0017296]
[1733487503095,0.004,98401.0,98400.0,0.0017296]
[1733487504341,0.205249,98402.0,98400.0,0.0017296]
[1733487504551,0.203249,98402.0,98400.0,0.0017296]
[1733487504758,0.207249,98402.0,98400.0,0.0017296]
[1733487504974,0.203249,98402.0,98400.0,0.0017296]
[1733487505193,0.002,98401.0,98400.0,0.0017296]
[1733487505418,0.006,98401.0,98400.0,0.0017296]
[1733487505623,0.002,98401.0,98400.0,0.0017296]
[1733487505797,0.203249,98402.0,98400.0,0.0017296]
[1733487506052,0.209249,98402.0,98400.0,0.0017296]
[1733487506254,0.205249,98402.0,98400.0,0.0017296]
[1733487506460,0.10503154,98401.0,98400.0,0.0017296]
[1733487507539,0.10903154,98401.0,98400.0,0.0017296]
[1733487507962,0.11103154,98401.0,98400.0,0.0017296]
[1733487508162,0.11726006,98401.0,98400.0,0.0017296]
[1733487508337,0.11326006,98401.0,98400.0,0.0017296]
[1733487508763,0.11126006,98401.0,98400.0,0.0017296]
[1733487508997,0.11426006,98401.0,98400.0,0.0017296]
[1733487509228,0.10603154,98401.0,98400.0,0.0017296]
[1733487509442,0.10903154,98401.0,98400.0,0.0017296]
[1733487510657,0.10803154,98401.0,98400.0,0.0017296]
[1733487510826,0.10903154,98401.0,98400.0,0.0017296]
[1733487511600,0.10803154,98401.0,98400.0,0.0017296]
[1733487511838,0.10603154,98401.0,98400.0,0.0017296]
[1733487512047,0.10903154,98401.0,98400.0,0.0017296]
[1733487512881,0.10603154,98401.0,98400.0,0.0017296]
[1733487513530,0.204249,98401.0,98400.0,0.0017296]
[1733487513709,0.203243,98404.0,98400.0,0.0017296]
[1733487514109,0.203247,98402.0,98400.0,0.0017296]
[1733487514342,0.00623195,98401.0,98400.0,0.0017296]
[1733487514587,0.00723195,98401.0,98400.0,0.0017296]
[1733487514781,0.01023195,98401.0,98400.0,0.0017296]
[1733487514909,0.00623195,98401.0,98400.0,0.0017296]
[1733487515965,0.00923195,98401.0,98400.0,0.0017296]
[1733487516917,0.01023195,98401.0,98400.0,0.0017296]
[1733487518372,0.004,98401.0,98400.0,0.0017296]
[1733487518972,0.01023195,98401.0,98400.0,0.0017296]
[1733487519374,0.004,98401.0,98400.0,0.0017296]
[1733487519573,0.00723499,98401.0,98400.0,0.0017296]
[1733487519790,0.00623499,98401.0,98400.0,0.0017296]
[1733487520197,0.00723499,98401.0,98400.0,0.0017296]
[1733487520612,0.00623499,98401.0,98400.0,0.0017296]
[1733487520814,0.00723499,98401.0,98400.0,0.0017296]
[1733487521283,0.01023499,98401.0,98400.0,0.0017296]
[1733487521783,0.00723499,98401.0,98400.0,0.0017296]
[1733487521935,0.00923499,98401.0,98400.0,0.0017296]
[1733487522825,0.00723499,98401.0,98400.0,0.0017296]
[1733487523013,0.00623499,98401.0,98400.0,0.0017296]
[1733487523226,0.00923499,98401.0,98400.0,0.0017296]
[1733487523740,0.00823499,98401.0,98400.0,0.0017296]
[1733487523947,0.00823499,98401.0,98400.0,0.00891604]
[1733487524181,0.00823499,98401.0,98400.0,0.0017296]
[1733487524409,0.00823499,98401.0,98400.0,0.00891604]
[1733487524611,0.00823499,98401.0,98400.0,0.0017296]
[1733487524735,0.00823499,98401.0,98400.0,0.00891604]
[1733487524932,0.00623499,98401.0,98400.0,0.0017296]
[1733487525173,0.00823499,98401.0,98400.0,0.00891604]
[1733487525382,0.00823499,98401.0,98400.0,0.0017296]
[1733487525536,0.00623499,98401.0,98400.0,0.00891604]
[1733487525747,0.00823499,98401.0,98400.0,0.0017296]
[1733487525998,0.00823499,98401.0,98400.0,0.00891604]
[1733487526248,0.00623499,98401.0,98400.0,0.0017296]
[1733487526417,0.00723499,98401.0,98400.0,0.00891604]
[1733487526779,0.00624044,98401.0,98400.0,0.00891604]
[1733487528161,0.00724044,98401.0,98400.0,0.00891604]
[1733487528381,0.00624044,98401.0,98400.0,0.00891604]
[1733487528829,0.00724044,98401.0,98400.0,0.00891604]
[1733487529261,0.00824044,98401.0,98400.0,0.00891604]
[1733487529493,0.00724044,98401.0,98400.0,0.00891604]
[1733487529922,0.00924044,98401.0,98400.0,0.00891604]
[1733487531579,0.00624044,98401.0,98400.0,0.00891604]
[1733487532021,0.00724044,98401.0,98400.0,0.00891604]
[1733487532245,0.00624044,98401.0,98400.0,0.00891604]
[1733487532477,0.28204482,98401.0,98400.0,0.00891604]
[1733487532665,0.28404482,98401.0,98400.0,0.00891604]
[1733487532888,0.28204482,98401.0,98400.0,0.0017296]
[1733487533340,0.28304482,98401.0,98400.0,0.0017296]
[1733487533562,0.28204482,98401.0,98400.0,0.0017296]
[1733487533989,0.27150983,98401.0,98400.0,0.0017296]
[1733487534233,0.36276852,98401.0,98400.0,0.0017296]
[1733487534449,0.27450983,98401.0,98400.0,0.0017296]
[1733487534647,0.24367198,98401.0,98400.0,0.0017296]
[1733487535064,0.24567198,98401.0,98400.0,0.0017296]
[1733487535205,0.20467198,98401.0,98400.0,0.0017296]
[1733487535809,0.20967198,98401.0,98400.0,0.0027296]
[1733487536027,0.21367198,98401.0,98400.0,0.0027296]
[1733487536458,0.20967198,98401.0,98400.0,0.0027296]
[1733487536889,0.21367198,98401.0,98400.0,0.0027296]
[1733487537523,0.28667198,98401.0,98400.0,0.0027296]
[1733487539307,0.26367198,98401.0,98400.0,0.0027296]
[1733487539507,0.28267198,98401.0,98400.0,0.0027296]
[1733487539916,0.27867198,98401.0,98400.0,0.0017296]
[1733487540311,0.28667198,98401.0,98400.0,0.0027296]
[1733487540745,0.3387489,98401.0,98400.0,0.0027296]
[1733487540977,0.8723489,98401.0,98400.0,0.0027296]
[1733487541235,0.82027198,98401.0,98400.0,0.0027296]
[1733487541859,0.81627198,98401.0,98400.0,0.0027296]
[1733487542082,0.8241743,98401.0,98400.0,0.0017296]
[1733487542229,0.8281743,98401.0,98400.0,0.0017296]
[1733487542441,0.99106922,98401.0,98400.0,6e-07]
[1733487542921,0.99106922,98401.0,98400.0,5e-07]
[1733487544191,1.29594922,98401.0,98400.0,5e-07]
[1733487544867,1.29194922,98401.0,98400.0,5e-07]
[1733487545320,1.28794922,98401.0,98400.0,5e-07]
[1733487545753,1.29694922,98401.0,98400.0,0.0010005]
[1733487546820,1.29694922,98401.0,98400.0,5e-07]
[1733487547050,1.29694922,98401.0,98390.0,0.0017298]
[1733487547051,0.63637,98391.0,98390.0,0.0017298]
[1733487547262,0.76440154,98391.0,98390.0,0.0017298]
[1733487547474,1.06928154,98391.0,98390.0,0.0017298]
[1733487548197,1.07528154,98391.0,98390.0,0.0027298]
[1733487548405,1.07728154,98391.0,98390.0,0.0027298]
[1733487548809,1.20233628,98391.0,98390.0,0.0027298]
[1733487549944,1.73593628,98391.0,98390.0,0.0027298]